bitfinex/quotes_ETHUSD_20241109
["timestamp","ask_amount","ask_price","bid_price","bid_amount"]
[1731138284825,0.7992,3024.2,3024.0,1.27407685]
[1731138288053,0.7992,3024.2,3023.2,0.1391309]
[1731138288347,0.7992,3024.2,3023.9,1.27407685]
[1731138292017,0.7992,3024.2,3024.1,1.27407685]
[1731138292455,13.74284382,3025.0,3024.1,1.27407685]
[1731138292456,0.8105,3024.6,3024.1,1.27407685]
[1731138292640,0.8105,3024.6,3024.5,1.27407685]
[1731138294253,0.8105,3024.6,3023.6,0.01]
[1731138294426,0.8105,3024.6,3024.4,1.27407685]
[1731138295657,0.8105,3024.6,3023.3,0.02]
[1731138295956,0.8105,3024.6,3024.0,1.27407685]
[1731138296559,0.8105,3024.4,3023.2,0.1391309]
[1731138296719,0.8105,3024.4,3023.8,1.27407685]
[1731138297044,0.8105,3024.4,3024.0,1.27407685]
[1731138298457,0.8105,3024.4,3023.8,1.27407685]
[1731138299730,0.8105,3024.4,3024.0,1.27407685]
[1731138299923,13.05642191,3025.0,3024.2,1.27407685]
[1731138300123,0.8203,3024.8,3023.5,0.01]
[1731138300439,0.8203,3024.8,3023.9,1.27407685]
[1731138301123,0.55,3024.7,3023.9,1.27407685]
[1731138301324,0.8203,3024.6,3023.9,1.27407685]
[1731138303130,0.8203,3024.6,3024.1,1.27407685]
[1731138303967,0.8203,3024.6,3024.3,1.27407685]
[1731138305227,0.8203,3024.6,3024.5,1.27407685]
[1731138306256,0.826,3025.2,3024.5,1.27407685]
[1731138306430,0.826,3025.2,3023.6,0.01]
[1731138306766,0.826,3025.2,3024.5,1.27407685]
[1731138307584,0.55,3025.0,3024.5,1.27407685]
[1731138308083,0.826,3024.9,3024.5,1.27407685]
[1731138309086,0.826,3024.9,3024.7,1.27407685]
[1731138309385,0.826,3024.9,3024.1,1.27407685]
[1731138309861,0.826,3024.9,3024.3,1.27407685]
[1731138310681,0.826,3024.9,3024.7,1.27407685]
[1731138312050,0.826,3025.2,3024.7,1.27407685]
[1731138312251,0.826,3025.2,3024.9,1.27407685]
[1731138313455,0.826,3025.2,3024.5,2.75937463]
[1731138313791,0.826,3025.2,3024.5,3.03531209]
[1731138315988,0.826,3025.2,3024.8,2.75937463]
[1731138318325,0.04959716,3025.3,3024.8,2.75937463]
[1731138318604,0.04959716,3025.3,3025.1,2.75937463]
[1731138320275,0.789,3026.0,3025.2,0.06609903]
[1731138320495,0.789,3026.7,3025.7,2.75937463]
[1731138321592,0.55,3026.6,3025.7,2.75937463]
[1731138321897,0.789,3026.6,3025.3,0.28254737]
[1731138322107,0.789,3026.6,3025.2,2.75937463]
[1731138323427,0.789,3026.7,3025.5,2.75937463]
[1731138323724,0.789,3026.7,3025.8,2.75937463]
[1731138324944,0.55,3026.6,3025.8,2.75937463]
[1731138325723,0.789,3026.7,3026.1,2.75937463]
[1731138325930,0.04956865,3026.9,3026.2,0.27593746]
[1731138326127,0.83506865,3026.9,3026.2,0.27593746]
[1731138327230,0.83506865,3026.9,3026.6,2.75937463]
[1731138327396,0.04956865,3026.9,3026.6,2.75937463]
[1731138330794,0.7855,3026.8,3025.7,3.01]
[1731138331036,0.7855,3026.8,3025.9,2.75937463]
[1731138333033,0.7855,3026.8,3026.2,2.75937463]
[1731138333357,0.7855,3026.8,3026.3,0.27593746]
[1731138333934,0.04956865,3026.9,3026.5,2.75937463]
[1731138334295,0.04956865,3026.9,3026.4,0.06607618]
[1731138334491,0.04956865,3026.9,3026.5,2.75937463]
[1731138335595,0.7855,3027.2,3026.5,2.75937463]
[1731138335795,0.7855,3027.2,3026.6,0.27593746]
[1731138336202,0.7855,3027.2,3026.8,2.75937463]
[1731138336896,0.7855,3028.1,3026.8,2.75937463]
[1731138337801,0.55,3028.0,3026.8,2.75937463]
[1731138338006,0.55,3027.8,3026.8,2.75937463]
[1731138338243,0.7855,3027.7,3026.8,3.06290584]
[1731138338439,0.55,3027.6,3026.8,3.06290584]
[1731138338621,0.7855,3027.5,3026.8,3.06290584]
[1731138340648,0.7855,3027.5,3026.8,0.30353121]
[1731138340866,0.7855,3027.5,3026.5,2.75937463]
[1731138341238,0.828,3027.3,3025.9,0.01]
[1731138341441,0.828,3027.3,3026.3,2.75937463]
[1731138341613,12.37,3027.9,3026.3,2.75937463]
[1731138341614,0.55,3027.2,3026.3,2.75937463]
[1731138341809,0.828,3027.1,3026.4,0.27593746]
[1731138342121,0.55,3027.2,3026.4,0.27593746]
[1731138342318,0.828,3026.9,3026.4,0.27593746]
[1731138342925,0.828,3026.9,3026.0,2.75937463]
[1731138347164,0.828,3026.9,3026.3,2.75937463]
[1731138351068,0.828,3026.9,3026.6,2.75937463]
[1731138352331,0.828,3026.9,3026.3,2.75937463]
[1731138352958,0.828,3026.9,3025.5,0.02]
[1731138353147,0.828,3026.9,3026.3,2.75937463]
[1731138356144,3.0,3027.5,3025.7,2.75937463]
[1731138356145,0.55,3026.6,3025.7,2.75937463]
[1731138356448,0.55,3026.4,3025.7,2.75937463]
[1731138356651,0.7654,3026.3,3025.7,3.06668183]
[1731138356979,0.7654,3025.3,3023.2,0.2593309]
[1731138357179,0.7654,3025.1,3023.4,2.75937463]
[1731138357340,0.7654,3024.7,3023.7,2.75937463]
[1731138357683,0.55,3024.6,3023.7,2.75937463]
[1731138357880,0.55,3024.6,3023.8,0.27593746]
[1731138358042,0.7654,3024.5,3023.8,0.27593746]
[1731138358237,0.7654,3024.5,3023.7,2.75937463]
[1731138358577,0.55,3024.4,3023.7,2.75937463]
[1731138358948,0.7654,3024.3,3023.7,2.75937463]
[1731138359540,0.7654,3024.3,3023.3,2.75937463]
[1731138366174,0.7654,3024.3,3023.6,2.75937463]
[1731138366982,0.7654,3024.3,3023.2,0.2593309]
[1731138367202,0.7654,3024.3,3023.5,2.75937463]
[1731138368212,0.7654,3024.3,3023.5,3.03531209]
[1731138369722,0.7654,3024.3,3023.8,2.75937463]
[1731138373685,0.7654,3024.3,3023.5,3.03531209]
[1731138374825,0.7654,3024.3,3023.5,0.27593746]
[1731138374993,0.7654,3024.3,3023.6,2.75937463]
[1731138378405,0.7967,3024.1,3023.2,0.1391309]
[1731138378610,0.7967,3023.9,3023.2,0.1391309]
[1731138378996,0.7967,3023.9,3023.2,2.89850553]
[1731138379293,0.7967,3023.9,3023.2,3.18835608]
[1731138382548,0.796,3023.7,3023.2,0.1391309]
[1731138383348,0.55,3023.6,3023.2,0.1391309]
[1731138383551,0.55,3023.4,3023.2,0.1391309]
[1731138383709,0.796,3023.3,3023.2,0.1391309]
[1731138384148,0.55,3023.3,3023.2,0.1391309]
[1731138384335,0.55,3023.2,3022.6,0.04486284]
[1731138384535,0.55,3023.0,3022.6,0.04486284]
[1731138385413,0.8204,3022.9,3022.6,0.04486284]
[1731138388033,0.8204,3022.7,3022.6,0.04486284]
[1731138388331,1.3704,3022.7,3022.6,0.04486284]
[1731138388515,0.55,3022.7,3022.6,0.04486284]
[1731138388718,1.3704,3022.7,3022.6,0.04486284]
[1731138389229,1.3704,3022.7,3021.3,0.2693]
[1731138389230,0.55,3022.4,3021.3,0.01]
[1731138389540,0.8204,3022.1,3021.3,0.01]
[1731138389744,0.55,3022.0,3021.3,0.01]
[1731138390832,0.8204,3022.1,3021.6,2.75937463]
[1731138391145,13.1904,3022.4,3021.7,0.27593746]
[1731138391853,13.1904,3022.4,3021.9,2.75937463]
[1731138392845,0.8204,3022.4,3021.9,2.75937463]
[1731138393048,0.8204,3023.4,3022.2,2.75937463]
[1731138393362,0.55,3022.9,3021.9,2.75937463]
[1731138393520,0.55,3022.9,3021.9,3.06290584]
[1731138394838,0.55,3022.9,3022.0,0.3042]
[1731138395165,0.8204,3023.0,3022.0,0.3042]
[1731138395665,0.8204,3023.0,3022.2,2.75937463]
[1731138395973,0.8204,3023.0,3022.0,0.3042]
[1731138395974,0.8204,3023.0,3022.5,2.75937463]
[1731138396192,0.8204,3023.0,3022.6,0.27593746]
[1731138396326,0.8204,3023.8,3022.6,0.27593746]
[1731138396661,0.8204,3023.8,3022.5,2.75937463]
[1731138397374,0.8204,3023.8,3022.6,0.06615877]
[1731138397967,0.8204,3023.6,3022.6,0.06615877]
[1731138398184,0.55,3023.5,3022.6,0.3042]
[1731138398381,0.55,3023.5,3022.8,2.75937463]
[1731138399032,0.55,3023.5,3022.7,3.06573209]
[1731138399773,0.8204,3023.6,3022.8,0.06615354]
[1731138399978,0.8204,3023.6,3023.0,2.75937463]
[1731138400178,0.8233,3024.6,3023.3,2.75937463]
[1731138400672,0.8233,3024.6,3023.4,0.06614296]
[1731138401046,0.8233,3024.6,3023.3,2.75937463]
[1731138401192,0.8233,3024.6,3023.8,2.75937463]
[1731138401408,0.8233,3024.6,3023.2,0.3042]
[1731138401700,0.8233,3024.6,3023.8,2.75937463]
[1731138401998,0.8233,3024.6,3023.1,2.75937463]
[1731138402754,0.55,3024.5,3023.1,2.75937463]
[1731138402985,0.8233,3024.4,3023.1,2.75937463]
[1731138403160,0.55,3024.1,3022.8,2.75937463]
[1731138403371,0.55,3023.9,3022.9,0.27593746]
[1731138403758,0.55,3023.7,3022.9,0.27593746]
[1731138404870,0.55,3023.7,3023.2,2.75937463]
[1731138407987,0.8233,3023.8,3023.3,0.06614527]
[1731138408188,0.8233,3023.8,3023.2,2.75937463]
[1731138408467,0.8233,3023.8,3023.3,0.34207994]
[1731138408795,0.8233,3023.8,3023.5,2.75937463]
[1731138409302,0.8233,3023.8,3023.4,2.75937463]
[1731138409594,0.55,3024.6,3023.7,2.75937463]
[1731138409782,0.8164,3024.5,3023.7,2.75937463]
[1731138412094,0.55,3024.4,3023.7,2.75937463]
[1731138412308,0.55,3024.4,3023.7,3.03531209]
[1731138415988,0.8164,3024.5,3024.0,2.75937463]
[1731138416188,0.8164,3024.5,3024.1,0.06613076]
[1731138416390,0.8164,3024.5,3024.0,2.75937463]
[1731138416809,0.8164,3024.5,3024.3,2.75937463]
[1731138417023,0.8164,3024.7,3024.3,2.75937463]
[1731138417171,0.8164,3024.9,3024.4,0.06612213]
[1731138418310,0.8164,3024.9,3024.3,2.75937463]
[1731138419314,0.8164,3024.9,3024.3,3.03531209]
[1731138420892,0.8164,3024.9,3024.3,0.27593746]
[1731138421091,0.8164,3024.9,3024.0,2.75937463]
[1731138421725,0.55,3024.8,3024.0,2.75937463]
[1731138422732,0.55,3024.8,3023.9,0.3042]
[1731138423037,0.7584,3024.7,3023.9,3.06357463]
[1731138423840,0.55,3024.6,3023.6,3.3042]
[1731138424002,0.55,3024.6,3023.7,0.60635746]
[1731138424409,0.55,3024.4,3023.7,0.60635746]
[1731138424604,0.55,3024.4,3023.7,2.75937463]
[1731138427248,0.55,3024.4,3023.8,0.06613246]
[1731138427928,0.55,3024.4,3023.7,2.75937463]
[1731138428129,0.55,3024.4,3023.8,0.06613246]
[1731138428511,0.7584,3024.5,3023.8,0.06613246]
[1731138428512,0.7584,3024.5,3024.0,2.75937463]
[1731138428847,0.7584,3024.5,3024.0,3.04192534]
[1731138430341,0.7584,3024.5,3024.0,2.75937463]
[1731138430748,0.8231,3024.3,3023.2,0.3042]
[1731138431094,0.8231,3024.3,3023.6,2.75937463]
[1731138431642,0.04959721,3025.1,3023.6,2.75937463]
[1731138431643,0.8231,3024.1,3023.6,2.75937463]
[1731138432434,0.8231,3024.1,3023.7,0.06613665]
[1731138432607,0.8231,3024.1,3023.6,2.75937463]
[1731138433623,0.8231,3024.1,3023.9,2.75937463]
[1731138434022,0.8231,3024.1,3023.2,0.3042]
[1731138434244,0.8231,3024.1,3023.6,2.75937463]
[1731138434836,0.8231,3024.1,3023.9,2.75937463]
[1731138435018,0.8231,3024.9,3024.0,0.06613202]
[1731138435218,0.8231,3024.9,3024.3,2.75937463]
[1731138435621,0.8231,3024.9,3024.6,2.75937463]
[1731138436812,0.55,3024.8,3024.6,2.75937463]
[1731138437054,0.8231,3024.9,3024.6,2.75937463]
[1731138437840,0.04959721,3025.1,3024.6,3.03531209]
[1731138438018,0.04959721,3025.1,3024.6,2.75937463]
[1731138438552,0.55,3025.0,3024.6,2.75937463]
[1731138439966,0.04959721,3025.1,3024.7,0.06611581]
[1731138440329,0.8231,3025.2,3024.7,0.06611581]
[1731138440330,0.8231,3025.2,3024.9,2.75937463]
[1731138441672,0.8281,3025.4,3024.9,2.75937463]
[1731138441876,0.8281,3025.4,3024.9,3.06573209]
[1731138442746,0.55,3025.9,3024.9,3.06573209]
[1731138442948,0.55,3025.9,3024.9,2.75937463]
[1731138443181,0.55,3025.7,3024.9,2.75937463]
[1731138444350,0.55,3025.7,3025.0,0.06610866]
[1731138444550,0.55,3025.7,3024.9,2.75937463]
[1731138444863,0.55,3025.7,3025.2,2.75937463]
[1731138446169,0.55,3025.7,3025.2,3.06357463]
[1731138446890,0.55,3025.7,3025.3,0.06610374]
[1731138447113,0.8281,3025.8,3025.2,3.36993209]
[1731138447295,0.7696,3026.3,3025.5,2.75937463]
[1731138447463,0.7696,3026.3,3025.8,2.75937463]
[1731138448791,0.55,3026.2,3025.6,0.3042]
[1731138449769,0.55,3026.2,3025.5,2.75937463]
[1731138449975,0.55,3026.2,3025.5,3.03531209]
[1731138455395,0.55,3026.2,3025.8,2.75937463]
[1731138455606,0.7696,3026.3,3025.8,2.75937463]
[1731138457531,0.7696,3025.9,3024.6,2.75937463]
[1731138457746,0.55,3025.8,3024.6,2.75937463]
[1731138457892,0.7696,3025.5,3024.6,2.75937463]
[1731138458089,0.55,3025.4,3024.6,2.75937463]
[1731138458313,0.55,3025.2,3024.6,2.75937463]
[1731138458520,0.55,3025.2,3024.6,3.03531209]
[1731138458701,0.55,3025.2,3024.7,0.06611521]
[1731138459299,0.7696,3025.3,3024.7,0.06611521]
[1731138459530,0.7696,3025.3,3024.6,3.03531209]
[1731138460535,0.7696,3025.3,3024.6,2.75937463]
[1731138462936,0.7696,3025.3,3024.7,0.06611521]
[1731138464203,0.7696,3025.3,3024.9,2.75937463]
[1731138466232,0.7696,3025.3,3024.6,2.75937463]
[1731138468213,0.7696,3025.3,3024.7,0.06611281]
[1731138468395,0.55,3025.2,3023.8,0.3042]
[1731138468596,0.7966,3025.1,3024.1,2.75937463]
[1731138469140,0.7966,3025.1,3023.8,2.75937463]
[1731138469141,0.55,3025.0,3023.8,2.75937463]
[1731138469294,0.7966,3024.9,3023.8,2.75937463]
[1731138469493,0.7966,3024.9,3023.9,0.27593746]
[1731138470407,0.7966,3024.9,3023.2,0.01]
[1731138470408,0.55,3024.5,3022.4,0.3042]
[1731138470610,0.55,3024.3,3022.8,2.75937463]
[1731138470825,0.55,3024.1,3022.8,2.75937463]
[1731138471155,0.55,3023.9,3022.9,0.27593746]
[1731138471297,0.7966,3023.8,3022.9,0.27593746]
[1731138472142,0.7966,3023.8,3023.0,0.06614896]
[1731138472343,0.7966,3023.8,3023.1,2.75937463]
[1731138473145,0.7966,3023.8,3023.0,0.06614896]
[1731138473359,0.7966,3023.8,3020.1,3.98728147]
[1731138473360,0.55,3023.5,3022.2,2.75937463]
[1731138473642,0.55,3023.5,3022.3,0.27593746]
[1731138474346,0.53346471,3023.5,3022.3,0.27593746]
[1731138475543,0.53346471,3023.5,3022.3,3.27593746]
[1731138476402,0.7966,3023.4,3022.8,2.75937463]
[1731138476632,0.7966,3023.4,3022.9,0.06615329]
[1731138476847,0.7966,3023.4,3023.0,0.28255279]
[1731138477009,0.7966,3023.4,3023.1,0.06614725]
[1731138477209,0.7966,3023.4,3023.0,0.28255279]
[1731138477424,0.7966,3023.4,3023.1,0.066147]
[1731138477826,0.7966,3023.4,3023.0,0.28255279]
[1731138478149,0.7966,3024.4,3023.1,2.75937463]
[1731138478351,0.55,3024.1,3022.8,0.0661476]
[1731138478562,0.55,3024.1,3021.7,0.01]
[1731138478563,3.31937463,3024.1,3022.1,2.75937463]
[1731138478706,0.7966,3023.8,3022.2,0.06616654]
[1731138478908,0.55,3023.7,3022.2,0.06616654]
[1731138479109,0.7966,3023.6,3022.3,0.28255412]
[1731138479305,0.55,3023.5,3022.3,0.28255412]
[1731138479519,0.55,3023.3,3022.4,2.82554262]
[1731138480172,0.55,3023.3,3022.4,2.80899262]
[1731138480173,0.01655007,3023.2,3022.4,2.80899262]
[1731138480764,0.01655007,3023.2,3022.4,2.75937463]
[1731138480960,0.01655007,3023.2,3022.5,0.30419287]
[1731138480961,0.7538,3023.1,3022.5,0.30419287]
[1731138481137,0.01655007,3023.0,3022.5,0.30419287]
[1731138481659,0.01655007,3023.0,3021.6,3.10357463]
[1731138481660,0.7538,3022.7,3021.5,0.34447813]
[1731138481961,0.7538,3022.3,3021.2,2.75937463]
[1731138482131,0.01655007,3022.2,3021.3,2.76937463]
[1731138482327,0.7538,3022.1,3021.4,0.27693746]
[1731138482525,0.01655007,3022.0,3021.4,0.27693746]
[1731138483431,0.7538,3022.1,3021.4,0.27693746]
[1731138483638,0.7538,3022.1,3021.4,3.27693746]
[1731138483959,0.7538,3022.1,3021.5,0.60463121]
[1731138484959,0.7567,3021.9,3021.3,0.01]
[1731138485160,0.01655007,3021.8,3021.3,0.01]
[1731138486020,0.7567,3021.7,3021.3,0.01]
[1731138486227,0.01655007,3021.6,3021.3,0.01]
[1731138487168,0.7567,3021.7,3021.3,0.01]
[1731138488771,0.7567,3021.5,3021.3,0.01]
[1731138490462,0.55,3021.4,3021.3,0.01]
[1731138491059,0.55,3021.4,3021.3,0.03]
[1731138491293,0.7567,3021.5,3021.3,0.03]
[1731138493662,0.7567,3022.6,3021.3,0.03]
[1731138493881,0.55,3022.3,3021.3,0.03]
[1731138494077,0.55,3022.0,3021.3,0.03]
[1731138494307,0.55,3021.7,3021.3,0.03]
[1731138494474,0.55,3021.5,3021.3,0.03]
[1731138495107,0.7567,3021.4,3021.3,0.03]
[1731138495464,1.3067,3021.4,3021.3,0.03]
[1731138504731,0.7567,3021.4,3021.3,0.03]
[1731138505917,1.3067,3021.4,3021.3,0.03]
[1731138506529,1.3067,3021.4,3020.7,0.42625544]
[1731138507649,0.7567,3021.4,3020.7,0.42625544]
[1731138507858,0.55,3021.7,3020.9,2.75937463]
[1731138508038,0.01655007,3021.6,3020.9,2.75937463]
[1731138509864,0.01655007,3021.6,3020.8,0.31856301]
[1731138512353,0.01655007,3021.6,3020.9,2.75937463]
[1731138515912,0.7655,3021.5,3020.8,0.31856301]
[1731138516274,0.56655007,3021.4,3020.7,0.42625544]
[1731138516470,0.55,3021.4,3020.7,0.08205544]
[1731138518587,0.7655,3021.3,3020.7,0.08205544]
[1731138521763,0.7655,3021.3,3020.9,2.75937463]
[1731138522717,0.7655,3021.3,3020.9,3.10357463]
[1731138523069,0.55,3021.8,3021.0,0.31035746]
[1731138523216,0.01655007,3021.7,3020.9,3.10357463]
[1731138523527,0.7853,3021.9,3021.5,2.75937463]
[1731138524261,0.7853,3022.3,3021.5,2.75937463]
[1731138524563,0.01655007,3022.2,3021.5,2.75937463]
[1731138524915,0.7853,3022.3,3021.5,2.75937463]
[1731138525117,0.7853,3022.3,3021.5,3.06973209]
[1731138526013,0.7853,3022.3,3021.8,2.75937463]
[1731138526211,0.04964941,3022.4,3022.1,2.75937463]
[1731138527764,0.7698,3023.0,3022.3,0.3442]
[1731138528036,1.3628953,3024.2,3022.8,0.4428]
[1731138528037,0.01655007,3023.6,3022.8,0.4428]
[1731138528241,0.01655007,3024.1,3023.0,2.75937463]
[1731138528436,0.01655007,3024.1,3023.0,3.07959209]
[1731138528636,0.01655007,3024.3,3023.3,2.75937463]
[1731138528874,0.01655007,3024.3,3023.4,0.06614353]
[1731138529085,0.01655007,3024.3,3023.3,2.75937463]
[1731138529394,0.70799772,3024.7,3023.3,2.75937463]
[1731138529553,0.02655007,3024.7,3023.3,2.75937463]
[1731138529753,1.60128731,3024.7,3023.3,2.75937463]
[1731138530854,0.7558,3024.6,3023.0,2.75937463]
[1731138531057,0.55,3024.3,3023.0,2.75937463]
[1731138531290,0.7558,3024.1,3023.0,2.75937463]
[1731138531594,0.7558,3023.9,3023.0,2.75937463]
[1731138531777,0.56655007,3023.8,3023.0,2.75937463]
[1731138532091,0.7558,3023.7,3022.7,2.75937463]
[1731138532304,0.01655007,3023.6,3022.7,3.07959209]
[1731138532597,0.01655007,3023.6,3022.3,0.4428]
[1731138532598,0.7558,3023.5,3022.3,0.4428]
[1731138532760,0.55,3023.8,3022.3,0.4428]
[1731138532761,0.7558,3023.3,3022.4,2.75937463]
[1731138534199,0.7558,3023.3,3022.3,0.4428]
[1731138534414,0.7558,3023.3,3022.8,2.75937463]
[1731138535301,0.01655007,3024.0,3023.1,2.75937463]
[1731138535302,0.7558,3023.9,3023.1,2.75937463]
[1731138535459,0.01655007,3023.8,3023.1,2.75937463]
[1731138535660,0.7558,3023.9,3023.1,2.75937463]
[1731138537363,0.7558,3023.9,3023.4,2.75937463]
[1731138537559,0.7558,3024.4,3023.8,2.75937463]
[1731138537766,0.7558,3024.4,3023.5,0.4428]
[1731138537767,0.7558,3024.4,3024.1,2.75937463]
[1731138541479,0.7717,3024.7,3024.1,2.75937463]
[1731138541675,0.7717,3024.7,3024.4,2.75937463]
[1731138541880,0.7717,3025.1,3024.4,2.75937463]
[1731138542079,0.7717,3025.1,3024.9,2.75937463]
[1731138542318,0.04960552,3025.2,3024.9,2.75937463]
[1731138546242,0.55,3025.9,3025.0,2.75937463]
[1731138546460,0.01655007,3025.8,3025.0,0.50890975]
[1731138546649,0.01655007,3025.8,3025.2,2.75937463]
[1731138547500,0.01655007,3025.9,3025.2,3.07959209]
[1731138548899,0.7739,3026.0,3025.5,2.75937463]
[1731138549901,0.7739,3026.0,3025.8,2.75937463]
[1731138550134,0.7739,3026.0,3025.3,0.06609377]
[1731138550333,0.55,3026.7,3025.8,2.75937463]
[1731138550648,0.7739,3026.5,3025.8,2.75937463]
[1731138550817,0.7739,3026.5,3025.9,0.34202608]
[1731138551145,0.7739,3026.5,3026.1,2.75937463]
[1731138552040,0.7739,3026.5,3025.3,3.0]
[1731138552041,0.7739,3026.5,3025.8,2.75937463]
[1731138552558,0.01655007,3026.4,3025.8,2.75937463]
[1731138552735,0.7739,3026.3,3025.8,2.75937463]
[1731138553063,0.7739,3026.3,3025.5,2.75937463]
[1731138553259,0.7739,3026.3,3025.6,0.27593746]
[1731138556030,0.7739,3026.3,3025.7,0.06609301]
[1731138556530,0.7739,3026.3,3025.6,0.27593746]
[1731138556931,0.7739,3026.3,3025.7,0.066093]
[1731138557538,0.7739,3026.3,3025.6,0.27593746]
[1731138557539,0.7739,3026.3,3025.8,2.75937463]
[1731138557742,0.7739,3026.3,3025.9,0.27593746]
[1731138562748,0.73332897,3026.3,3025.9,0.27593746]
[1731138566326,0.73332897,3026.3,3025.1,0.01]
[1731138566327,0.8155,3023.3,3022.4,3.40809861]
[1731138566455,0.55,3022.8,3021.1,2.75937463]
[1731138566683,0.55,3022.8,3020.8,0.7593]
[1731138566684,0.56655007,3022.7,3021.5,2.75937463]
[1731138566940,0.56655007,3022.7,3021.6,0.34784489]
[1731138567221,0.56655007,3022.7,3021.6,1.44342126]
[1731138567420,0.56655007,3022.7,3021.6,0.28165902]
[1731138567931,0.56655007,3022.7,3021.1,2.75937463]
[1731138568223,0.56655007,3022.7,3021.2,1.02009557]
[1731138568406,0.55,3022.5,3020.8,0.56501788]
[1731138568611,0.55,3022.3,3020.8,0.56501788]
[1731138568814,0.01655007,3022.2,3020.8,0.56501788]
[1731138568980,0.01655007,3022.2,3020.9,0.3406448]
[1731138570082,0.01655007,3022.2,3021.0,0.5725843]
[1731138570429,0.01655007,3022.2,3020.9,0.3406448]
[1731138571291,0.01655007,3022.2,3020.7,0.08205544]
[1731138576601,0.01655007,3022.2,3020.8,3.40380049]
[1731138576944,0.01655007,3022.2,3020.9,3.06618727]
[1731138577106,0.01655007,3022.2,3020.9,0.63877157]
[1731138577442,0.01655007,3022.2,3020.9,3.63877157]
[1731138577803,0.01655007,3022.2,3020.9,3.06618727]
[1731138578198,0.01655007,3022.2,3021.0,0.64699878]
[1731138578416,0.01655007,3022.2,3021.1,0.06618576]
[1731138578939,0.56655007,3022.3,3021.1,0.06618576]
[1731138580131,0.56655007,3022.3,3021.2,0.06618205]
[1731138580503,0.83205007,3022.4,3021.2,3.40380049]
[1731138580701,0.8155,3022.4,3021.3,0.34038005]
[1731138580941,0.8155,3022.4,3021.3,3.34038005]
[1731138585935,0.8155,3022.4,3021.3,3.91296435]
[1731138586245,0.8155,3022.4,3021.4,3.0]
[1731138586449,0.8155,3022.4,3021.5,0.67441805]
[1731138589211,0.8155,3022.4,3021.2,0.7593]
[1731138589430,0.8155,3022.4,3021.2,4.16310049]
[1731138589651,0.8155,3022.4,3021.3,3.0]
[1731138591040,0.56655007,3022.3,3020.9,0.13776287]
[1731138591216,0.7662,3022.2,3020.9,3.0]
[1731138591413,0.01655007,3022.1,3021.0,0.37693]
[1731138591749,0.01655007,3022.1,3020.7,0.08205544]
[1731138591750,0.56655007,3022.1,3020.7,0.08205544]
[1731138591969,0.55,3021.7,3020.7,0.08205544]
[1731138592111,0.55,3021.5,3020.7,0.08205544]
[1731138592306,0.01655007,3021.4,3020.7,0.08205544]
[1731138593047,0.7662,3021.3,3020.7,0.08205544]
[1731138594849,0.55,3021.2,3020.7,0.08205544]
[1731138596650,0.7662,3021.3,3020.7,0.08205544]
[1731138598335,0.55,3021.2,3020.7,0.08205544]
[1731138598748,0.7662,3021.1,3020.7,0.08205544]
[1731138599440,0.55,3021.0,3020.7,0.08205544]
[1731138605049,0.7719,3020.9,3020.7,0.08205544]
[1731138607891,0.7719,3021.2,3020.7,0.08205544]
[1731138608602,12.37,3021.7,3020.9,2.7671549]
[1731138608801,12.37,3021.7,3020.7,0.08205544]
[1731138608802,0.01655007,3021.6,3021.0,0.27671549]
[1731138608988,0.01655007,3021.6,3020.7,0.08205544]
[1731138611219,0.01655007,3021.6,3020.7,2.84921034]
[1731138611520,0.7719,3021.5,3020.7,2.84921034]
[1731138613676,0.7719,3021.5,3020.7,3.66751034]
[1731138614604,0.7719,3022.1,3020.7,3.66751034]
[1731138614914,0.56655007,3022.0,3020.8,0.36675103]
[1731138618330,0.55,3021.8,3020.8,0.36675103]
[1731138618617,0.01655007,3021.7,3020.8,0.36675103]
[1731138619587,0.55,3021.8,3020.7,0.90035544]
[1731138621401,0.3921,3021.8,3020.7,0.90035544]
[1731138621839,0.7693,3021.7,3020.7,0.08205544]
[1731138623399,0.55,3021.6,3020.7,0.08205544]
[1731138623599,0.55,3021.4,3020.7,0.08205544]
[1731138625535,0.55,3021.2,3020.7,0.08205544]
[1731138625698,0.55,3021.0,3020.7,0.08205544]
[1731138631867,0.55,3021.0,3020.8,0.06337587]
[1731138632355,0.55,3021.0,3020.7,0.08205544]
[1731138632717,0.55,3021.0,3020.8,0.06337587]
[1731138633144,0.55,3021.0,3020.7,0.08205544]
[1731138633453,0.55,3021.0,3020.8,0.06456717]
[1731138633626,0.55,3021.0,3020.7,0.08205544]
[1731138633821,0.55,3021.0,3020.8,0.06456717]
[1731138634023,0.55,3021.0,3020.7,0.08205544]
[1731138634236,0.55,3021.0,3020.8,0.06456717]
[1731138634423,0.55,3021.0,3020.7,0.08205544]
[1731138634624,0.55,3021.0,3020.8,0.06457138]
[1731138634954,0.55,3021.0,3020.7,0.08205544]
[1731138636154,0.767,3021.1,3020.7,0.08205544]
[1731138636319,0.55,3021.3,3020.7,0.08205544]
[1731138636517,0.55,3021.3,3020.8,0.06456086]
[1731138636919,0.55,3021.3,3020.7,0.08205544]
[1731138637439,0.55,3021.3,3020.8,0.06456086]
[1731138637657,0.55,3021.3,3020.7,0.08205544]
[1731138637858,0.55,3021.3,3020.8,0.06456086]
[1731138638151,0.55,3021.3,3020.7,0.86985544]
[1731138638323,0.767,3021.4,3020.7,0.86985544]
[1731138638526,0.767,3021.4,3020.8,0.06456086]
[1731138638857,12.37,3021.7,3020.8,0.06456086]
[1731138639016,12.37,3021.7,3020.7,0.86985544]
[1731138639218,12.37,3021.7,3020.8,0.06456086]
[1731138639515,13.75201256,3021.7,3020.8,0.06456086]
[1731138640154,0.55,3021.6,3020.7,0.86985544]
[1731138640456,0.55,3021.6,3020.8,0.06449773]
[1731138641359,0.55,3021.6,3020.8,0.13069978]
[1731138641652,0.01655007,3021.5,3020.8,0.13069978]
[1731138641902,0.01655007,3021.5,3020.8,0.06449773]
[1731138642262,0.01655007,3021.5,3020.8,0.43464854]
[1731138642466,0.01655007,3021.6,3020.8,0.06449773]